Workbook

Sheet MM1
A1: M/M/1-System
A3: Exponentielle Zwischenankunftszeiten (mittlerer Abstand zwischen zwei Kundenankünften E[I]=1/lambda)
A4: Exponentielle Bedienzeiten (mittlere Bedienzeit E[S]=1/mu)
A5: Ein Agent
A6: Keine Beschränkung der Warte- und Bedienraumgröße
A9: Zustandswahrscheinlichkeiten (=pn)
A11: a^n(1-a)
A12: Gibt an, mit welcher Wahrscheinlichkeit sich n Personen im System befinden
A13: Weiterer Parameter: Arbeitslast a=lambda/mu
A15: a | B15: 0.8 | C15: Arbeitslast (=lambda/mu) | F15: => rho= | G15: =B15 -> 0.8 | H15: Auslastung
A16: n | B16: 3 | C16: Personen im System
A17: Ergebnis | B17: =B15^B16*(1-B15) -> 0.1024 | C17: Wahrscheinlichkeit für n Kunden
A20: Wartezeitverteilung (=P(W<=t))
A22: 1-lambda/mu*EXP((lambda-mu)*t)
A23: Gibt an, mit welcher Wahrscheinlichkeit ein Kunde höchstens t Sekunden warten muss
A24: Weitere Parameter: Ankunftsrate lambda (in 1/Sekunde) und Bedienrate mu (in 1/Sekunde)
A26: lambda | B26: 0.01 | C26: Ankunftsrate (in 1/Sekunde) | F26: => E[I]= | G26: =1/B26 -> 100 | H26: Mittlere Zwischenankunftszeit (in Sekunden)
A27: mu | B27: 0.0125 | C27: Bedienrate (in 1/Sekunde) | F27: => E[S]= | G27: =1/B27 -> 80 | H27: Mittlere Bedienzeit (in Sekunden)
F28: => rho= | G28: =B26/B27 -> 0.8 | H28: Auslastung
A29: t | B29: 20 | C29: Wartezeit höchstens so lang (in Sekunden)
A30: Ergebnis | B30: =1-B26/B27*EXP((B26-B27)*B29) -> 0.2390164604 | C30: Wahrscheinlichkeit für Wartezeit <=t
A33: Blockierwahrscheinlichkeit (=P(W>0))
A35: a
A36: Gibt an mit welcher Wahrscheinlichkeit ein Kunde warten muss
A37: Parameter: Arbeitslast a=lambda/mu
A39: a | B39: 0.8 | C39: Arbeitslast (=lambda/mu) | F39: => rho= | G39: =B39 -> 0.8 | H39: Auslastung
A40: Ergebnis | B40: =B39 -> 0.8 | C40: Wahrscheinlichkeit, dass ein Kunde warten muss
A43: Mittlere Warteschlangenlänge (=E[NQ])
A45: a^2/(1-a)
A46: Gibt die mittlere Warteschlangenlänge an
A47: Parameter: Arbeitslast a=lambda/mu
A49: a | B49: 0.8 | C49: Arbeitslast (=lambda/mu) | F49: => rho= | G49: =B49 -> 0.8 | H49: Auslastung
A50: Ergebnis | B50: =B49^2/(1-B49) -> 3.2 | C50: Mittlere Warteschlangenlänge
A53: Mittlere Anzahl an Kunden im System (=E[N])
A55: a/(1-a)
A56: Gibt die mittlere Anzahl an Kunden im System (wartend und in Bedienung) an
A57: Parameter: Arbeitslast a=lambda/mu
A59: a | B59: 0.8 | C59: Arbeitslast (=lambda/mu) | F59: => rho= | G59: =B59 -> 0.8 | H59: Auslastung
A60: Ergebnis | B60: =B59/(1-B59) -> 4 | C60: Mittlere Anzahl an Kunden im System
A63: Mittlere Wartezeit (=E[W])
A65: lambda/mu/(mu-lambda)
A66: Gibt die mittlere Wartezeit der Kunden an
A67: Parameter: Ankunftsrate lambda (in 1/Sekunde) und Bedienrate mu (in 1/Sekunde)
A69: lambda | B69: 0.01 | C69: Ankunftsrate (in 1/Sekunde) | F69: => E[I]= | G69: =1/B69 -> 100 | H69: Mittlere Zwischenankunftszeit (in Sekunden)
A70: mu | B70: 0.0125 | C70: Bedienrate (in 1/Sekunde) | F70: => E[S]= | G70: =1/B70 -> 80 | H70: Mittlere Bedienzeit (in Sekunden)
F71: => rho= | G71: =B69/B70 -> 0.8 | H71: Auslastung
A72: Ergebnis | B72: =B69/B70/(B70-B69) -> 320 | C72: Mittlere Wartezeit (in Sekunden)
A75: Mittlere Verweilzeit (=E[V])
A77: 1/(mu-lambda)
A78: Gibt die mittlere Verweilzeit (=Wartezeit+Bedienzeit) der Kunden an
A79: Parameter: Ankunftsrate lambda (in 1/Sekunde) und Bedienrate mu (in 1/Sekunde)
A81: lambda | B81: 0.01 | C81: Ankunftsrate (in 1/Sekunde) | F81: => E[I]= | G81: =1/B81 -> 100 | H81: Mittlere Zwischenankunftszeit (in Sekunden)
A82: mu | B82: 0.0125 | C82: Bedienrate (in 1/Sekunde) | F82: => E[S]= | G82: =1/B82 -> 80 | H82: Mittlere Bedienzeit (in Sekunden)
F83: => rho= | G83: =B81/B82 -> 0.8 | H83: Auslastung
A84: Ergebnis | B84: =1/(B82-B81) -> 400 | C84: Mittlere Verweilzeit (in Sekunden)

Sheet MMc
A1: M/M/c-System
A3: Exponentielle Zwischenankunftszeiten (mittlerer Abstand zwischen zwei Kundenankünften E[I]=1/lambda)
A4: Exponentielle Bedienzeiten (mittlere Bedienzeit E[S]=1/mu)
A5: c>=1 Agenten
A6: Keine Beschränkung der Warte- und Bedienraumgröße
A9: Zustandswahrscheinlichkeiten (=pn)
A11: MMcZustandsP(a,c,n)
A12: Gibt an, mit welcher Wahrscheinlichkeit sich n Personen im System befinden
A13: Weitere Parameter: Arbeitslast a=lambda/mu und Anzahl an Agenten c
A15: a | B15: 7 | C15: Arbeitslast (=lambda/mu)
A16: c | B16: 9 | C16: Anzahl an Agenten | F16: => rho= | G16: =B15/B16 -> 0.7777777778 | H16: Auslastung
A17: n | B17: 3 | C17: Personen im System
A18: Ergebnis | B18: =MMcZustandsP(B15,B16,B17) -> 0.04397563044 | C18: Wahrscheinlichkeit für n Kunden
A21: Wartezeitverteilung (Erlang-C-Formel, =P(W<=t))
A23: ErlangC(lambda,mu,c,t)
A24: Gibt an, mit welcher Wahrscheinlichkeit ein Kunde höchstens t Sekunden warten muss
A25: Weitere Parameter: Ankunftsrate lambda (in 1/Sekunde), Bedienrate mu (in 1/Sekunde) und Anzahl an Agenten c
A27: lambda | B27: =1/10 -> 0.1 | C27: Ankunftsrate (in 1/Sekunde) | F27: => E[I]= | G27: =1/B27 -> 10 | H27: Mittlere Zwischenankunftszeit (in Sekunden)
A28: mu | B28: =1/300 -> 0.003333333333 | C28: Bedienrate (in 1/Sekunde) | F28: => E[S]= | G28: =1/B28 -> 300 | H28: Mittlere Bedienzeit (in Sekunden)
A29: c | B29: 35 | C29: Anzahl an Agenten | F29: => rho= | G29: =B27/B28/B29 -> 0.8571428571 | H29: Auslastung
A30: t | B30: 20 | C30: Wartezeit höchstens so lang (in Sekunden)
A31: Ergebnis | B31: =ErlangC(1/10,1/300,35,20) -> 0.7960877552 | C31: Wahrscheinlichkeit für Wartezeit <=t
A34: Blockierwahrscheinlichkeit (=P(W>0))
A36: ErlangC_P1(a,c)
A37: Gibt an mit welcher Wahrscheinlichkeit ein Kunde warten muss
A38: Parameter: Arbeitslast a=lambda/mu und Anzahl an Agenten c
A40: a | B40: 7 | C40: Arbeitslast (=lambda/mu)
A41: c | B41: 9 | C41: Anzahl an Agenten | F41: => rho= | G41: =B40/B41 -> 0.7777777778 | H41: Auslastung
A42: Ergebnis | B42: =ErlangC_P1(B40,B41) -> 0.3849470942 | C42: Wahrscheinlichkeit, dass ein Kunde warten muss
A45: Mittlere Warteschlangenlänge (=E[NQ])
A47: ErlangC_P1(a,c)*a/(c-a)
A48: Gibt die mittlere Warteschlangenlänge an
A49: Parameter: Arbeitslast a=lambda/mu und Anzahl an Agenten c
A51: a | B51: 7 | C51: Arbeitslast (=lambda/mu)
A52: c | B52: 9 | C52: Anzahl an Agenten | F52: => rho= | G52: =B51/B52 -> 0.7777777778 | H52: Auslastung
A53: Ergebnis | B53: =ErlangC_P1(B51,B52)*B51/(B52-B51) -> 1.34731483 | C53: Mittlere Warteschlangenlänge
A56: Mittlere Anzahl an Kunden im System (=E[N])
A58: ErlangC_P1(a,c)*a/(c-a)+a
A59: Gibt die mittlere Anzahl an Kunden im System (wartend und in Bedienung) an
A60: Parameter: Arbeitslast a=lambda/mu und Anzahl an Agenten c
A62: a | B62: 7 | C62: Arbeitslast (=lambda/mu)
A63: c | B63: 9 | C63: Anzahl an Agenten | F63: => rho= | G63: =B62/B63 -> 0.7777777778 | H63: Auslastung
A64: Ergebnis | B64: =ErlangC_P1(B62,B63)*B62/(B63-B62)+B62 -> 8.34731483 | C64: Mittlere Anzahl an Kunden im System
A67: Mittlere Wartezeit (=E[W])
A69: ErlangC_P1(lambda/mu,c)/(c*mu-lambda)
A70: Gibt die mittlere Wartezeit der Kunden an
A71: Parameter: Ankunftsrate lambda (in 1/Sekunde), Bedienrate mu (in 1/Sekunde) und Anzahl an Agenten c
A73: lambda | B73: =1/10 -> 0.1 | C73: Ankunftsrate (in 1/Sekunde) | F73: => E[I]= | G73: =1/B73 -> 10 | H73: Mittlere Zwischenankunftszeit (in Sekunden)
A74: mu | B74: =1/300 -> 0.003333333333 | C74: Bedienrate (in 1/Sekunde) | F74: => E[S]= | G74: =1/B74 -> 300 | H74: Mittlere Bedienzeit (in Sekunden)
A75: c | B75: 35 | C75: Anzahl an Agenten | F75: => rho= | G75: =B73/B74/B75 -> 0.8571428571 | H75: Auslastung
A76: Ergebnis | B76: =ErlangC_P1(B73/B74,B75)/(B75*B74-B73) -> 17.07494774 | C76: Mittlere Wartezeit (in Sekunden)
A79: Mittlere Verweilzeit (=E[V])
A81: ErlangC_P1(lambda/mu,c)/(c*mu-lambda)+1/mu
A82: Gibt die mittlere Verweilzeit (=Wartezeit+Bedienzeit) der Kunden an
A83: Parameter: Ankunftsrate lambda (in 1/Sekunde), Bedienrate mu (in 1/Sekunde) und Anzahl an Agenten c
A85: lambda | B85: =1/10 -> 0.1 | C85: Ankunftsrate (in 1/Sekunde) | F85: => E[I]= | G85: =1/B85 -> 10 | H85: Mittlere Zwischenankunftszeit (in Sekunden)
A86: mu | B86: =1/300 -> 0.003333333333 | C86: Bedienrate (in 1/Sekunde) | F86: => E[S]= | G86: =1/B86 -> 300 | H86: Mittlere Bedienzeit (in Sekunden)
A87: c | B87: 35 | C87: Anzahl an Agenten | F87: => rho= | G87: =B85/B86/B87 -> 0.8571428571 | H87: Auslastung
A88: Ergebnis | B88: =ErlangC_P1(B85/B86,B87)/(B87*B86-B85)+1/B86 -> 317.0749477 | C88: Mittlere Verweilzeit (in Sekunden)

Sheet MMcKM
A1: M/M/c/K+M-System
A3: Exponentielle Zwischenankunftszeiten (mittlerer Abstand zwischen zwei Kundenankünften E[I]=1/lambda)
A4: Exponentielle Bedienzeiten (mittlere Bedienzeit E[S]=1/mu)
A5: Exponentielle Wartezeittoleranzen (mittlere Wartezeittoleranz E[WT]=1/nu)
A6: c>=1 Agenten
A7: Warte- und Bedienraumgröße: K (sind K Kunden im System, wird der nächste Anrufer abgewiesen)
A10: Zustandswahrscheinlichkeiten (=pn)
A12: MMcKMZustandsP(lambda,mu,nu,c,K,n)
A13: Gibt an, mit welcher Wahrscheinlichkeit sich n Personen im System befinden
A14: Weitere Parameter: Ankunftsrate lambda (in 1/Sekunden), Bedienrate mu (in 1/Sekunden),
A15: Abbruchrate nu (in 1/Sekunden) und Anzahl an Agenten c, Warte- und Bedienraumgröße K
A17: lambda | B17: =1/10 -> 0.1 | C17: Ankunftsrate (in 1/Sekunde) | F17: => E[I]= | G17: =1/B17 -> 10 | H17: Mittlere Zwischenankunftszeit (in Sekunden)
A18: mu | B18: =1/240 -> 0.004166666667 | C18: Bedienrate (in 1/Sekunde) | F18: => E[S]= | G18: =1/B18 -> 240 | H18: Mittlere Bedienzeit (in Sekunden)
A19: nu | B19: =1/300 -> 0.003333333333 | C19: Abbruchrate (in 1/Sek.) | F19: => E[WT]= | G19: =1/B19 -> 300 | H19: Mittlere Wartezeittoleranz (in Sekunden)
A20: c | B20: 28 | C20: Anzahl an Agenten | F20: => rho= | G20: =B17/B18/B20 -> 0.8571428571 | H20: Auslastung
A21: K | B21: 80 | C21: Warte- und Bedienraumgröße
A22: n | B22: 30 | C22: Personen im System
A23: Ergebnis | B23: =MMcKMZustandsP(B17,B18,B19,B20,B21,B22) -> 0.03655086716 | C23: Wahrscheinlichkeit für n Kunden
A26: Wartezeitverteilung (Erweiterte Erlang-C-Formel, =P(W<=t))
A28: ErwErlangC(lambda,mu,nu,c,K,t)
A29: Gibt an, mit welcher Wahrscheinlichkeit ein Kunde höchstens t Sekunden warten muss
A30: Weitere Parameter: Ankunftsrate lambda (in 1/Sekunden), Bedienrate mu (in 1/Sekunden),
A31: Abbruchrate nu (in 1/Sekunden) und Anzahl an Agenten c, Warte- und Bedienraumgröße K
A33: lambda | B33: =1/10 -> 0.1 | C33: Ankunftsrate (in 1/Sekunde) | F33: => E[I]= | G33: =1/B33 -> 10 | H33: Mittlere Zwischenankunftszeit (in Sekunden)
A34: mu | B34: =1/240 -> 0.004166666667 | C34: Bedienrate (in 1/Sekunde) | F34: => E[S]= | G34: =1/B34 -> 240 | H34: Mittlere Bedienzeit (in Sekunden)
A35: nu | B35: =1/300 -> 0.003333333333 | C35: Abbruchrate (in 1/Sek.) | F35: => E[WT]= | G35: =1/B35 -> 300 | H35: Mittlere Wartezeittoleranz (in Sekunden)
A36: c | B36: 28 | C36: Anzahl an Agenten | F36: => rho= | G36: =B33/B34/B36 -> 0.8571428571 | H36: Auslastung
A37: K | B37: 80 | C37: Warte- und Bedienraumgröße
A38: t | B38: 20 | C38: Wartezeit höchstens so lang (in Sekunden)
A39: Ergebnis | B39: =ErwErlangC(B33,B34,B35,B36,B37,B38) -> 0.8633721957 | C39: Wahrscheinlichkeit für Wartezeit <=t
A42: Wahrscheinlichkeit für Warteabbruch (=P(A))
A44: ErwErlangC_PA(lambda,mu,nu,c,K)
A45: Gibt an mit welcher Wahrscheinlichkeit ein Kunde das Warten aufgibt
A46: Parameter: Ankunftsrate lambda (in 1/Sekunden), Bedienrate mu (in 1/Sekunden),
A47: Abbruchrate nu (in 1/Sekunden) und Anzahl an Agenten c, Warte- und Bedienraumgröße K
A49: lambda | B49: =1/10 -> 0.1 | C49: Ankunftsrate (in 1/Sekunde) | F49: => E[I]= | G49: =1/B49 -> 10 | H49: Mittlere Zwischenankunftszeit (in Sekunden)
A50: mu | B50: =1/240 -> 0.004166666667 | C50: Bedienrate (in 1/Sekunde) | F50: => E[S]= | G50: =1/B50 -> 240 | H50: Mittlere Bedienzeit (in Sekunden)
A51: nu | B51: =1/30 -> 0.03333333333 | C51: Abbruchrate (in 1/Sek.) | F51: => E[WT]= | G51: =1/B51 -> 30 | H51: Mittlere Wartezeittoleranz (in Sekunden)
A52: c | B52: 25 | C52: Anzahl an Agenten | F52: => rho= | G52: =B49/B50/B52 -> 0.96 | H52: Auslastung
A53: K | B53: 80 | C53: Warte- und Bedienraumgröße
A54: Ergebnis | B54: =ErwErlangC_PA(B49,B50,B51,B52,B53) -> 0.09759081563 | C54: Wahrscheinlichkeit, dass ein Kunde das Warten aufgibt
A57: Mittlere Warteschlangenlänge (=E[NQ])
A59: ErwErlangC_ENQ(lambda,mu,nu,c,K)
A60: Gibt die mittlere Warteschlangenlänge an
A61: Parameter: Ankunftsrate lambda (in 1/Sekunden), Bedienrate mu (in 1/Sekunden),
A62: Abbruchrate nu (in 1/Sekunden) und Anzahl an Agenten c, Warte- und Bedienraumgröße K
A64: lambda | B64: =1/10 -> 0.1 | C64: Ankunftsrate (in 1/Sekunde) | F64: => E[I]= | G64: =1/B64 -> 10 | H64: Mittlere Zwischenankunftszeit (in Sekunden)
A65: mu | B65: =1/240 -> 0.004166666667 | C65: Bedienrate (in 1/Sekunde) | F65: => E[S]= | G65: =1/B65 -> 240 | H65: Mittlere Bedienzeit (in Sekunden)
A66: nu | B66: =1/300 -> 0.003333333333 | C66: Abbruchrate (in 1/Sek.) | F66: => E[WT]= | G66: =1/B66 -> 300 | H66: Mittlere Wartezeittoleranz (in Sekunden)
A67: c | B67: 28 | C67: Anzahl an Agenten | F67: => rho= | G67: =B64/B65/B67 -> 0.8571428571 | H67: Auslastung
A68: K | B68: 80 | C68: Warte- und Bedienraumgröße
A69: Ergebnis | B69: =ErwErlangC_ENQ(B64,B65,B66,B67,B68) -> 0.6833261838 | C69: Mittlere Warteschlangenlänge
A72: Mittlere Anzahl an Kunden im System (=E[N])
A74: ErwErlangC_EN(lambda,mu,nu,c,K)
A75: Gibt die mittlere Anzahl an Kunden im System (wartend und in Bedienung) an
A76: Parameter: Ankunftsrate lambda (in 1/Sekunden), Bedienrate mu (in 1/Sekunden),
A77: Abbruchrate nu (in 1/Sekunden) und Anzahl an Agenten c, Warte- und Bedienraumgröße K
A79: lambda | B79: =1/10 -> 0.1 | C79: Ankunftsrate (in 1/Sekunde) | F79: => E[I]= | G79: =1/B79 -> 10 | H79: Mittlere Zwischenankunftszeit (in Sekunden)
A80: mu | B80: =1/240 -> 0.004166666667 | C80: Bedienrate (in 1/Sekunde) | F80: => E[S]= | G80: =1/B80 -> 240 | H80: Mittlere Bedienzeit (in Sekunden)
A81: nu | B81: =1/300 -> 0.003333333333 | C81: Abbruchrate (in 1/Sek.) | F81: => E[WT]= | G81: =1/B81 -> 300 | H81: Mittlere Wartezeittoleranz (in Sekunden)
A82: c | B82: 28 | C82: Anzahl an Agenten | F82: => rho= | G82: =B79/B80/B82 -> 0.8571428571 | H82: Auslastung
A83: K | B83: 80 | C83: Warte- und Bedienraumgröße
A84: Ergebnis | B84: =ErwErlangC_EN(B79,B80,B81,B82,B83) -> 24.13666524 | C84: Mittlere Anzahl an Kunden im System
A87: Mittlere Wartezeit (=E[W])
A89: ErwErlangC_EW(lambda,mu,nu,c,K)
A90: Gibt die mittlere Wartezeit der Kunden an
A91: Parameter: Ankunftsrate lambda (in 1/Sekunden), Bedienrate mu (in 1/Sekunden),
A92: Abbruchrate nu (in 1/Sekunden) und Anzahl an Agenten c, Warte- und Bedienraumgröße K
A94: lambda | B94: =1/10 -> 0.1 | C94: Ankunftsrate (in 1/Sekunde) | F94: => E[I]= | G94: =1/B94 -> 10 | H94: Mittlere Zwischenankunftszeit (in Sekunden)
A95: mu | B95: =1/240 -> 0.004166666667 | C95: Bedienrate (in 1/Sekunde) | F95: => E[S]= | G95: =1/B95 -> 240 | H95: Mittlere Bedienzeit (in Sekunden)
A96: nu | B96: =1/300 -> 0.003333333333 | C96: Abbruchrate (in 1/Sek.) | F96: => E[WT]= | G96: =1/B96 -> 300 | H96: Mittlere Wartezeittoleranz (in Sekunden)
A97: c | B97: 28 | C97: Anzahl an Agenten | F97: => rho= | G97: =B94/B95/B97 -> 0.8571428571 | H97: Auslastung
A98: K | B98: 80 | C98: Warte- und Bedienraumgröße
A99: Ergebnis | B99: =ErwErlangC_EW(B94,B95,B96,B97,B98) -> 6.833261838 | C99: Mittlere Wartezeit (in Sekunden)
A101: Achtung: Hier geht auch die Abbruchzeit der Warteabbrecher mit ein.
A103: Mittlere Verweilzeit (=E[V])
A105: ErwErlangC_EV(lambda,mu,nu,c,K)
A106: Gibt die mittlere Verweilzeit (=Wartezeit+Bedienzeit) der Kunden an
A107: Parameter: Ankunftsrate lambda (in 1/Sekunden), Bedienrate mu (in 1/Sekunden),
A108: Abbruchrate nu (in 1/Sekunden) und Anzahl an Agenten c, Warte- und Bedienraumgröße K
A110: lambda | B110: =1/10 -> 0.1 | C110: Ankunftsrate (in 1/Sekunde) | F110: => E[I]= | G110: =1/B110 -> 10 | H110: Mittlere Zwischenankunftszeit (in Sekunden)
A111: mu | B111: =1/240 -> 0.004166666667 | C111: Bedienrate (in 1/Sekunde) | F111: => E[S]= | G111: =1/B111 -> 240 | H111: Mittlere Bedienzeit (in Sekunden)
A112: nu | B112: =1/300 -> 0.003333333333 | C112: Abbruchrate (in 1/Sek.) | F112: => E[WT]= | G112: =1/B112 -> 300 | H112: Mittlere Wartezeittoleranz (in Sekunden)
A113: c | B113: 28 | C113: Anzahl an Agenten | F113: => rho= | G113: =B110/B111/B113 -> 0.8571428571 | H113: Auslastung
A114: K | B114: 80 | C114: Warte- und Bedienraumgröße
A115: Ergebnis | B115: =ErwErlangC_EV(B110,B111,B112,B113,B114) -> 241.3666524 | C115: Mittlere Verweilzeit (in Sekunden)
A117: Achtung: Hier geht auch die Abbruchzeit der Warteabbrecher mit ein.

Sheet MMcc
A1: M/M/c/c-System
A3: Exponentielle Zwischenankunftszeiten (mittlerer Abstand zwischen zwei Kundenankünften E[I]=1/lambda)
A4: Exponentielle Bedienzeiten (mittlere Bedienzeit E[S]=1/mu)
A5: c>=1 Agenten
A6: Warte- und Bedienraumgröße: c (d.h. keine Warteschlange; ist kein Bediener frei, wird der Kunde abgewiesen)
A8: Verlustwahrscheinlichkeiten (=pc)
A10: ErlangB(a,c)
A11: Gibt an, mit welcher Wahrscheinlichkeit sich c Personen im System befinden
A12: Weiterer Parameter: Arbeitslast a=lambda/mu
A14: a | B14: 7 | C14: Arbeitslast (=lambda/mu)
A15: c | B15: 9 | C15: Anzahl an Agenten | F15: => rho= | G15: =B14/B15 -> 0.7777777778 | H15: Auslastung
A16: Ergebnis | B16: =ErlangB(B14,B15) -> 0.1221013433 | C16: Wahrscheinlichkeit für n Kunden
